[Event "Early-Titled-Tuesday-Blitz-April-16-2024"]
[Site "Chess.com"]
[Date "2024.04.16"]
[Round "9"]
[White "Maftuna2303"]
[Black "PonyQueen07"]
[Result "1-0"]
[WhiteElo "2380"]
[BlackElo "2214"]
[TimeControl "180+1"]
[EndTime "9:48:55 PDT"]
[Termination "Maftuna2303 won by checkmate"]

1. e4 {[%clk 0:03:00.9]} 1... c5 {[%clk 0:02:58.9]} 2. Nf3 {[%clk 0:03:00.4]}
2... Nc6 {[%clk 0:02:59.2]} 3. d4 {[%clk 0:02:59.7]} 3... cxd4 {[%clk
0:02:59.3]} 4. Nxd4 {[%clk 0:02:59.8]} 4... Nf6 {[%clk 0:02:59.6]} 5. Nc3 {[%clk
0:02:59.4]} 5... e5 {[%clk 0:02:59.6]} 6. Ndb5 {[%clk 0:02:57]} 6... d6 {[%clk
0:03:00]} 7. Bg5 {[%clk 0:02:55.9]} 7... a6 {[%clk 0:03:00.4]} 8. Na3 {[%clk
0:02:55.7]} 8... b5 {[%clk 0:03:00.3]} 9. Nd5 {[%clk 0:02:55.6]} 9... Be7 {[%clk
0:03:00.6]} 10. Bxf6 {[%clk 0:02:55.5]} 10... Bxf6 {[%clk 0:03:01.5]} 11. c4
{[%clk 0:02:55.6]} 11... b4 {[%clk 0:03:01.5]} 12. Nc2 {[%clk 0:02:55.3]} 12...
O-O {[%clk 0:03:02.2]} 13. g3 {[%clk 0:02:51.6]} 13... a5 {[%clk 0:02:56.7]} 14.
h4 {[%clk 0:02:49.9]} 14... Be7 {[%clk 0:02:41.5]} 15. Bg2 {[%clk 0:02:45.9]}
15... Rb8 {[%clk 0:02:23.8]} 16. b3 {[%clk 0:02:45.1]} 16... Kh8 {[%clk
0:02:04.6]} 17. O-O {[%clk 0:02:43.3]} 17... f5 {[%clk 0:02:02.3]} 18. Qd3
{[%clk 0:02:39.8]} 18... f4 {[%clk 0:01:54]} 19. Rad1 {[%clk 0:02:29.2]} 19...
fxg3 {[%clk 0:01:30.8]} 20. fxg3 {[%clk 0:02:25.9]} 20... Bg4 {[%clk 0:01:29.7]}
21. Rde1 {[%clk 0:02:22.4]} 21... Qd7 {[%clk 0:01:19.3]} 22. Nce3 {[%clk
0:02:14.8]} 22... Be6 {[%clk 0:01:01]} 23. Nc2 {[%clk 0:02:10.2]} 23... Rbd8
{[%clk 0:00:46.2]} 24. Rxf8+ {[%clk 0:02:04.8]} 24... Rxf8 {[%clk 0:00:41.3]}
25. Rf1 {[%clk 0:02:05.2]} 25... Rxf1+ {[%clk 0:00:24.5]} 26. Qxf1 {[%clk
0:02:02.4]} 26... h6 {[%clk 0:00:11.5]} 27. Qf2 {[%clk 0:01:59.7]} 27... Bh3
{[%clk 0:00:07.6]} 28. Qb6 {[%clk 0:01:50.2]} 28... Bxg2 {[%clk 0:00:07.1]} 29.
Kxg2 {[%clk 0:01:50.2]} 29... Bd8 {[%clk 0:00:02.2]} 30. Qf2 {[%clk 0:01:48.2]}
30... Qe6 {[%clk 0:00:01.5]} 31. Nde3 {[%clk 0:01:43.2]} 31... Nd4 {[%clk
0:00:01.4]} 32. Qd2 {[%clk 0:01:36.2]} 32... Nxc2 {[%clk 0:00:01.7]} 33. Qxc2
{[%clk 0:01:35.1]} 33... Bb6 {[%clk 0:00:02.1]} 34. Nd5 {[%clk 0:01:35.2]} 34...
Bd4 {[%clk 0:00:02.4]} 35. Qe2 {[%clk 0:01:34.4]} 35... Qf7 {[%clk 0:00:02.2]}
36. Qf3 {[%clk 0:01:29.8]} 36... Qxf3+ {[%clk 0:00:01.1]} 37. Kxf3 {[%clk
0:01:30]} 37... Kg8 {[%clk 0:00:01.7]} 38. Kg4 {[%clk 0:01:29.8]} 38... Kf7
{[%clk 0:00:02.2]} 39. h5 {[%clk 0:01:30.2]} 39... g6 {[%clk 0:00:02.2]} 40.
hxg6+ {[%clk 0:01:28.3]} 40... Kxg6 {[%clk 0:00:03.1]} 41. Ne7+ {[%clk
0:01:28.6]} 41... Kf6 {[%clk 0:00:03.5]} 42. Nc6 {[%clk 0:01:28.2]} 42... Bb6
{[%clk 0:00:03.8]} 43. Nb8 {[%clk 0:01:26.4]} 43... Ke7 {[%clk 0:00:03.6]} 44.
Kf5 {[%clk 0:01:25.2]} 44... Bc7 {[%clk 0:00:03.3]} 45. Nc6+ {[%clk 0:01:25.1]}
45... Kd7 {[%clk 0:00:03.8]} 46. Na7 {[%clk 0:01:25]} 46... Bb6 {[%clk
0:00:03.5]} 47. Nb5 {[%clk 0:01:25.1]} 47... Kc6 {[%clk 0:00:02.4]} 48. Ke6
{[%clk 0:01:16.5]} 48... Bc5 {[%clk 0:00:02.7]} 49. g4 {[%clk 0:01:15.1]} 49...
Kb6 {[%clk 0:00:01.7]} 50. Nxd6 {[%clk 0:01:15]} 50... Kc6 {[%clk 0:00:01.7]}
51. Nf7 {[%clk 0:01:14.2]} 51... Bd4 {[%clk 0:00:01.3]} 52. Nxe5+ {[%clk
0:01:14.1]} 52... Bxe5 {[%clk 0:00:01.4]} 53. Kxe5 {[%clk 0:01:14.3]} 53... Kd7
{[%clk 0:00:01.9]} 54. Kd5 {[%clk 0:01:14.4]} 54... Ke7 {[%clk 0:00:02.3]} 55.
c5 {[%clk 0:01:14.7]} 55... Kf6 {[%clk 0:00:02.8]} 56. c6 {[%clk 0:01:14.5]}
56... Kg5 {[%clk 0:00:03.7]} 57. c7 {[%clk 0:01:14.7]} 57... Kxg4 {[%clk
0:00:04.1]} 58. c8=Q+ {[%clk 0:01:14.8]} 58... Kg5 {[%clk 0:00:05]} 59. Qg8+
{[%clk 0:01:14.8]} 59... Kh4 {[%clk 0:00:04.5]} 60. e5 {[%clk 0:01:15.2]} 60...
h5 {[%clk 0:00:05.4]} 61. e6 {[%clk 0:01:15.6]} 61... Kh3 {[%clk 0:00:06.1]} 62.
e7 {[%clk 0:01:15.9]} 62... h4 {[%clk 0:00:07]} 63. e8=Q {[%clk 0:01:16]} 63...
Kh2 {[%clk 0:00:07.9]} 64. Qe2+ {[%clk 0:01:16.1]} 64... Kh3 {[%clk 0:00:07.9]}
65. Qgg4# {[%clk 0:01:16.2]} 1-0

[Event "Early-Titled-Tuesday-Blitz-April-16-2024"]
[Site "Chess.com"]
[Date "2024.04.16"]
[Round "9"]
[White "dmosesov"]
[Black "baki83"]
[Result "0-1"]
[WhiteElo "2630"]
[BlackElo "2908"]
[TimeControl "180+1"]
[EndTime "9:48:57 PDT"]
[Termination "baki83 won on time"]

1. Nf3 {[%clk 0:03:00.9]} 1... d5 {[%clk 0:02:58.9]} 2. c4 {[%clk 0:03:00.8]}
2... d4 {[%clk 0:02:58.8]} 3. d3 {[%clk 0:03:01.1]} 3... c5 {[%clk 0:02:55.3]}
4. e3 {[%clk 0:03:01]} 4... Nc6 {[%clk 0:02:55.6]} 5. exd4 {[%clk 0:03:01.1]}
5... cxd4 {[%clk 0:02:56.5]} 6. g3 {[%clk 0:03:01.7]} 6... g6 {[%clk 0:02:56.8]}
7. Bg2 {[%clk 0:03:02.2]} 7... Bg7 {[%clk 0:02:57.5]} 8. O-O {[%clk 0:03:02.9]}
8... Nf6 {[%clk 0:02:58.2]} 9. Re1 {[%clk 0:02:59.1]} 9... O-O {[%clk
0:02:58.5]} 10. a3 {[%clk 0:02:49.5]} 10... a5 {[%clk 0:02:58.2]} 11. Ne5 {[%clk
0:02:42.2]} 11... Nxe5 {[%clk 0:02:56.8]} 12. Rxe5 {[%clk 0:02:43.1]} 12... Nd7
{[%clk 0:02:56.2]} 13. Rb5 {[%clk 0:02:41.8]} 13... Qc7 {[%clk 0:02:54.7]} 14.
Nd2 {[%clk 0:02:29.1]} 14... Ne5 {[%clk 0:02:42.4]} 15. Nf3 {[%clk 0:01:59.7]}
15... Nc6 {[%clk 0:02:21.3]} 16. Bd2 {[%clk 0:01:51.1]} 16... Bd7 {[%clk
0:02:20]} 17. b4 {[%clk 0:01:44.8]} 17... Bf5 {[%clk 0:02:12.3]} 18. bxa5 {[%clk
0:01:21.6]} 18... Nxa5 {[%clk 0:02:03.1]} 19. Nh4 {[%clk 0:01:14.9]} 19... Bc8
{[%clk 0:01:55.8]} 20. a4 {[%clk 0:00:54.7]} 20... Nc6 {[%clk 0:01:53.1]} 21. a5
{[%clk 0:00:53.8]} 21... Ra7 {[%clk 0:01:50.3]} 22. Qb3 {[%clk 0:00:42.1]} 22...
Re8 {[%clk 0:01:32]} 23. Nf3 {[%clk 0:00:41.4]} 23... h6 {[%clk 0:01:27.4]} 24.
Ne1 {[%clk 0:00:36.3]} 24... Bd7 {[%clk 0:01:11.1]} 25. Rb1 {[%clk 0:00:33.8]}
25... Nd8 {[%clk 0:01:06.1]} 26. Rb6 {[%clk 0:00:26.1]} 26... Bc6 {[%clk
0:01:06]} 27. Bxc6 {[%clk 0:00:22.9]} 27... bxc6 {[%clk 0:01:04.2]} 28. a6
{[%clk 0:00:21.9]} 28... Ne6 {[%clk 0:00:47.6]} 29. Rb7 {[%clk 0:00:20.7]} 29...
Rxb7 {[%clk 0:00:45.1]} 30. Qxb7 {[%clk 0:00:20.3]} 30... Be5 {[%clk 0:00:36.2]}
31. f4 {[%clk 0:00:19.3]} 31... Bd6 {[%clk 0:00:35.4]} 32. Qxc7 {[%clk
0:00:16.9]} 32... Nxc7 {[%clk 0:00:30]} 33. a7 {[%clk 0:00:16.8]} 33... Ra8
{[%clk 0:00:29.9]} 34. Rb7 {[%clk 0:00:13.2]} 34... Ne6 {[%clk 0:00:28.6]} 35.
Nf3 {[%clk 0:00:10.7]} 35... Nc5 {[%clk 0:00:27.6]} 36. Rb6 {[%clk 0:00:11.1]}
36... Rxa7 {[%clk 0:00:19.8]} 37. Rxc6 {[%clk 0:00:11.1]} 37... Nxd3 {[%clk
0:00:19.4]} 38. Rb6 {[%clk 0:00:02.8]} 38... Ra2 {[%clk 0:00:16.2]} 0-1

[Event "Early-Titled-Tuesday-Blitz-April-16-2024"]
[Site "Chess.com"]
[Date "2024.04.16"]
[Round "9"]
[White "Matibar"]
[Black "alpope"]
[Result "1-0"]
[WhiteElo "2805"]
[BlackElo "2520"]
[TimeControl "180+1"]
[EndTime "9:48:57 PDT"]
[Termination "Matibar won by resignation"]

1. b4 {[%clk 0:02:59.9]} 1... g6 {[%clk 0:02:58]} 2. Bb2 {[%clk 0:02:59.5]} 2...
Nf6 {[%clk 0:02:58.6]} 3. Nf3 {[%clk 0:02:58.1]} 3... Bg7 {[%clk 0:02:58.5]} 4.
e3 {[%clk 0:02:57.9]} 4... d6 {[%clk 0:02:53.6]} 5. d4 {[%clk 0:02:56.7]} 5...
O-O {[%clk 0:02:51.7]} 6. Nbd2 {[%clk 0:02:56.3]} 6... Nbd7 {[%clk 0:02:50.7]}
7. a4 {[%clk 0:02:47.7]} 7... c5 {[%clk 0:02:45.8]} 8. dxc5 {[%clk 0:02:45.6]}
8... dxc5 {[%clk 0:02:45.2]} 9. b5 {[%clk 0:02:44.5]} 9... b6 {[%clk 0:02:39.8]}
10. Be2 {[%clk 0:02:42.3]} 10... Bb7 {[%clk 0:02:36.6]} 11. O-O {[%clk
0:02:42.9]} 11... Qc7 {[%clk 0:02:30.7]} 12. h3 {[%clk 0:02:40.3]} 12... Rfd8
{[%clk 0:02:30.1]} 13. Qc1 {[%clk 0:02:39.8]} 13... h6 {[%clk 0:01:51.5]} 14.
Nc4 {[%clk 0:02:38.9]} 14... Ne4 {[%clk 0:01:48.8]} 15. Bxg7 {[%clk 0:02:38.2]}
15... Kxg7 {[%clk 0:01:49.7]} 16. Qb2+ {[%clk 0:02:38.2]} 16... f6 {[%clk
0:01:50.2]} 17. Rfd1 {[%clk 0:02:39.1]} 17... Nf8 {[%clk 0:01:40.6]} 18. a5
{[%clk 0:02:23.5]} 18... Ne6 {[%clk 0:01:34.3]} 19. a6 {[%clk 0:02:15.4]} 19...
Bd5 {[%clk 0:01:27]} 20. Ncd2 {[%clk 0:02:07.1]} 20... N6g5 {[%clk 0:01:08.9]}
21. Nxg5 {[%clk 0:02:00.6]} 21... Nxg5 {[%clk 0:01:08.1]} 22. Bc4 {[%clk
0:01:53.4]} 22... Nf7 {[%clk 0:00:52]} 23. e4 {[%clk 0:01:47.6]} 23... Bxc4
{[%clk 0:00:45]} 24. Nxc4 {[%clk 0:01:48.5]} 24... Nd6 {[%clk 0:00:45.7]} 25.
Ne3 {[%clk 0:01:36.5]} 25... Nxe4 {[%clk 0:00:34.4]} 26. Nd5 {[%clk 0:01:36.3]}
26... Qe5 {[%clk 0:00:27.2]} 27. Qxe5 {[%clk 0:01:35]} 27... fxe5 {[%clk
0:00:28.1]} 28. Nxe7 {[%clk 0:01:29.9]} 28... Nc3 {[%clk 0:00:23.8]} 29. Re1
{[%clk 0:01:08.4]} 29... Nxb5 {[%clk 0:00:23]} 30. Rxe5 {[%clk 0:01:08.3]} 30...
Re8 {[%clk 0:00:21.8]} 31. Rae1 {[%clk 0:01:04.1]} 31... Nc7 {[%clk 0:00:21.3]}
32. Nd5 {[%clk 0:00:49.6]} 32... Rxe5 {[%clk 0:00:20.4]} 33. Rxe5 {[%clk
0:00:50.5]} 33... Nxa6 {[%clk 0:00:18.8]} 34. Re7+ {[%clk 0:00:50.4]} 34... Kf8
{[%clk 0:00:18.5]} 35. Rh7 {[%clk 0:00:49.7]} 35... Rb8 {[%clk 0:00:15.7]} 36.
c3 {[%clk 0:00:32.3]} 36... b5 {[%clk 0:00:15.4]} 37. Rxa7 {[%clk 0:00:31.8]}
37... b4 {[%clk 0:00:09.2]} 38. Rxa6 {[%clk 0:00:30.9]} 38... b3 {[%clk
0:00:09.6]} 39. Ra1 {[%clk 0:00:30.8]} 39... c4 {[%clk 0:00:09]} 40. Rb1 {[%clk
0:00:28.7]} 40... Rd8 {[%clk 0:00:08]} 41. Ne3 {[%clk 0:00:28.7]} 41... Rd3
{[%clk 0:00:08.2]} 42. Nxc4 {[%clk 0:00:28.6]} 42... Rxc3 {[%clk 0:00:08.8]} 43.
Nd2 {[%clk 0:00:26.1]} 1-0

[Event "Early-Titled-Tuesday-Blitz-April-16-2024"]
[Site "Chess.com"]
[Date "2024.04.16"]
[Round "9"]
[White "Nitzan_Steinberg"]
[Black "dropstoneDP"]
[Result "1-0"]
[WhiteElo "2916"]
[BlackElo "3058"]
[TimeControl "180+1"]
[EndTime "9:48:58 PDT"]
[Termination "Nitzan_Steinberg won on time"]

1. e4 {[%clk 0:03:00.9]} 1... e5 {[%clk 0:03:00.1]} 2. Nf3 {[%clk 0:03:01.1]}
2... Nf6 {[%clk 0:03:00.7]} 3. Nxe5 {[%clk 0:03:01.3]} 3... d6 {[%clk 0:03:01]}
4. Nf3 {[%clk 0:03:01.7]} 4... Nxe4 {[%clk 0:03:01.7]} 5. Nc3 {[%clk 0:02:58.4]}
5... Nxc3 {[%clk 0:03:01.6]} 6. dxc3 {[%clk 0:02:59.3]} 6... Be7 {[%clk
0:03:01.8]} 7. Be3 {[%clk 0:02:59.9]} 7... O-O {[%clk 0:03:02.1]} 8. Qd2 {[%clk
0:03:00.4]} 8... Nd7 {[%clk 0:03:02.7]} 9. O-O-O {[%clk 0:02:59.7]} 9... c6
{[%clk 0:03:02.2]} 10. h4 {[%clk 0:02:59.5]} 10... Nf6 {[%clk 0:02:56]} 11. Bd3
{[%clk 0:02:57]} 11... d5 {[%clk 0:02:55.1]} 12. Ng5 {[%clk 0:02:49.1]} 12... h6
{[%clk 0:02:50.3]} 13. f3 {[%clk 0:02:36.5]} 13... c5 {[%clk 0:02:50.8]} 14. Kb1
{[%clk 0:02:29.4]} 14... c4 {[%clk 0:02:45.9]} 15. Be2 {[%clk 0:02:28.7]} 15...
b5 {[%clk 0:02:45.5]} 16. g4 {[%clk 0:02:18.2]} 16... a5 {[%clk 0:02:30.8]} 17.
Nh3 {[%clk 0:02:17.7]} 17... b4 {[%clk 0:02:16.7]} 18. g5 {[%clk 0:02:17.9]}
18... Nh5 {[%clk 0:02:16.6]} 19. gxh6 {[%clk 0:02:12.8]} 19... g6 {[%clk
0:02:16.9]} 20. Nf4 {[%clk 0:02:02.4]} 20... Nxf4 {[%clk 0:02:07.1]} 21. Bxf4
{[%clk 0:01:59.9]} 21... Bf6 {[%clk 0:02:07.4]} 22. Qxd5 {[%clk 0:01:47.8]}
22... Qxd5 {[%clk 0:02:07.5]} 23. Rxd5 {[%clk 0:01:48.7]} 23... bxc3 {[%clk
0:02:07]} 24. Bxc4 {[%clk 0:01:44]} 24... Be6 {[%clk 0:01:50.5]} 25. Rd6 {[%clk
0:01:43.8]} 25... cxb2 {[%clk 0:01:40.2]} 26. Bxe6 {[%clk 0:01:34.5]} 26... fxe6
{[%clk 0:01:41.1]} 27. Rxe6 {[%clk 0:01:35.4]} 27... a4 {[%clk 0:01:12.9]} 28.
a3 {[%clk 0:01:35.5]} 28... Kh7 {[%clk 0:01:00.2]} 29. Rd1 {[%clk 0:01:08.9]}
29... Ra7 {[%clk 0:00:53.6]} 30. Bg5 {[%clk 0:00:50.1]} 30... Bh8 {[%clk
0:00:29.2]} 31. Rd3 {[%clk 0:00:38]} 31... Rc8 {[%clk 0:00:24.5]} 32. Rde3
{[%clk 0:00:24.6]} 32... Rcc7 {[%clk 0:00:12.3]} 33. c4 {[%clk 0:00:23.8]} 33...
Bd4 {[%clk 0:00:04.7]} 34. Re7+ {[%clk 0:00:20]} 34... Rxe7 {[%clk 0:00:04.8]}
35. Rxe7+ {[%clk 0:00:20.9]} 35... Rxe7 {[%clk 0:00:04.3]} 36. Bxe7 {[%clk
0:00:21.6]} 36... Kxh6 {[%clk 0:00:02.4]} 37. c5 {[%clk 0:00:21.9]} 37... Be5
{[%clk 0:00:01.4]} 38. Bd6 {[%clk 0:00:20.8]} 1-0

[Event "Early-Titled-Tuesday-Blitz-April-16-2024"]
[Site "Chess.com"]
[Date "2024.04.16"]
[Round "9"]
[White "Squirlolz"]
[Black "AndrewB92"]
[Result "1-0"]
[WhiteElo "2584"]
[BlackElo "2458"]
[TimeControl "180+1"]
[EndTime "9:49:00 PDT"]
[Termination "Squirlolz won on time"]

1. e4 {[%clk 0:03:00.9]} 1... c5 {[%clk 0:02:59.1]} 2. Be2 {[%clk 0:02:59.2]}
2... Nc6 {[%clk 0:02:59.2]} 3. f4 {[%clk 0:02:58.3]} 3... e5 {[%clk 0:02:52.9]}
4. Nf3 {[%clk 0:02:58]} 4... d6 {[%clk 0:02:51.2]} 5. O-O {[%clk 0:02:57.5]}
5... Nf6 {[%clk 0:02:49.5]} 6. d3 {[%clk 0:02:56.1]} 6... Be7 {[%clk 0:02:47.7]}
7. Nc3 {[%clk 0:02:51.7]} 7... O-O {[%clk 0:02:41.2]} 8. fxe5 {[%clk 0:02:46.2]}
8... dxe5 {[%clk 0:02:40.6]} 9. Bg5 {[%clk 0:02:46.7]} 9... h6 {[%clk
0:02:33.8]} 10. Bxf6 {[%clk 0:02:46.3]} 10... Bxf6 {[%clk 0:02:32.9]} 11. Nd5
{[%clk 0:02:47.2]} 11... Bg5 {[%clk 0:02:30.6]} 12. c3 {[%clk 0:02:29]} 12...
Be6 {[%clk 0:02:29.4]} 13. Qb3 {[%clk 0:02:26]} 13... Be3+ {[%clk 0:02:20.4]}
14. Kh1 {[%clk 0:02:22.7]} 14... Na5 {[%clk 0:02:10.3]} 15. Qa4 {[%clk
0:02:18.5]} 15... Bxd5 {[%clk 0:01:58]} 16. exd5 {[%clk 0:02:19.4]} 16... b5
{[%clk 0:01:43.2]} 17. Qe4 {[%clk 0:02:07.8]} 17... Bf4 {[%clk 0:01:39]} 18.
Nxe5 {[%clk 0:01:52]} 18... Bxe5 {[%clk 0:01:35.2]} 19. Qxe5 {[%clk 0:01:52.9]}
19... Re8 {[%clk 0:01:29.7]} 20. Qh5 {[%clk 0:01:53.1]} 20... g6 {[%clk
0:01:27.2]} 21. Qf3 {[%clk 0:01:50.8]} 21... f5 {[%clk 0:01:16.7]} 22. Rae1
{[%clk 0:01:46.6]} 22... Qd6 {[%clk 0:01:12]} 23. Bd1 {[%clk 0:01:41.6]} 23...
Nb7 {[%clk 0:01:10.4]} 24. Re6 {[%clk 0:01:36.2]} 24... Rxe6 {[%clk 0:01:01.5]}
25. dxe6 {[%clk 0:01:37.1]} 25... Rb8 {[%clk 0:00:58.7]} 26. Bb3 {[%clk
0:01:32.8]} 26... Kg7 {[%clk 0:00:57.8]} 27. Re1 {[%clk 0:01:30.9]} 27... Na5
{[%clk 0:00:38.1]} 28. Bc2 {[%clk 0:01:13.8]} 28... Re8 {[%clk 0:00:36.1]} 29.
Qe3 {[%clk 0:01:11.8]} 29... Nc6 {[%clk 0:00:34.6]} 30. h3 {[%clk 0:01:06.5]}
30... g5 {[%clk 0:00:29.8]} 31. a4 {[%clk 0:00:49.3]} 31... a6 {[%clk
0:00:28.3]} 32. axb5 {[%clk 0:00:49.2]} 32... axb5 {[%clk 0:00:29.2]} 33. Bb3
{[%clk 0:00:46.6]} 33... Kf6 {[%clk 0:00:28.4]} 34. Qf2 {[%clk 0:00:42.6]} 34...
Ne5 {[%clk 0:00:15.3]} 35. Bc2 {[%clk 0:00:37.7]} 35... Rxe6 {[%clk 0:00:06.4]}
36. d4 {[%clk 0:00:37.4]} 36... cxd4 {[%clk 0:00:01.8]} 37. cxd4 {[%clk
0:00:35]} 37... Nc4 {[%clk 0:00:01.6]} 38. Qxf5+ {[%clk 0:00:33.7]} 38... Ke7
{[%clk 0:00:02]} 39. Qh7+ {[%clk 0:00:28.7]} 39... Kd8 {[%clk 0:00:02.2]} 40.
Ra1 {[%clk 0:00:26.3]} 1-0

[Event "Early-Titled-Tuesday-Blitz-April-16-2024"]
[Site "Chess.com"]
[Date "2024.04.16"]
[Round "9"]
[White "KVAIDAN"]
[Black "jaskol95"]
[Result "1-0"]
[WhiteElo "2365"]
[BlackElo "2527"]
[TimeControl "180+1"]
[EndTime "9:49:03 PDT"]
[Termination "KVAIDAN won by checkmate"]

1. f4 {[%clk 0:02:04.2]} 1... d5 {[%clk 0:02:57.7]} 2. Nf3 {[%clk 0:02:03.9]}
2... Bg4 {[%clk 0:02:58]} 3. Ne5 {[%clk 0:02:03.4]} 3... Bf5 {[%clk 0:02:58.5]}
4. c4 {[%clk 0:02:03.9]} 4... e6 {[%clk 0:02:58.9]} 5. Qb3 {[%clk 0:02:01.6]}
5... Qc8 {[%clk 0:02:59.4]} 6. cxd5 {[%clk 0:01:57.2]} 6... Nf6 {[%clk
0:02:58.2]} 7. Nc3 {[%clk 0:01:48.7]} 7... Bd6 {[%clk 0:02:52.9]} 8. e3 {[%clk
0:01:43.5]} 8... O-O {[%clk 0:02:49.5]} 9. Be2 {[%clk 0:01:42.2]} 9... exd5
{[%clk 0:02:46.6]} 10. Nxd5 {[%clk 0:01:41.4]} 10... Nxd5 {[%clk 0:02:40.2]} 11.
Qxd5 {[%clk 0:01:40.7]} 11... Nd7 {[%clk 0:02:32.7]} 12. Nxd7 {[%clk 0:01:33.3]}
12... Qxd7 {[%clk 0:02:32.7]} 13. O-O {[%clk 0:01:32.2]} 13... Rfe8 {[%clk
0:02:28.1]} 14. Qf3 {[%clk 0:01:31]} 14... Be4 {[%clk 0:02:28]} 15. Qg3 {[%clk
0:01:29.7]} 15... Bc5 {[%clk 0:02:26.2]} 16. d4 {[%clk 0:01:28.9]} 16... Bb6
{[%clk 0:02:24.9]} 17. Bd2 {[%clk 0:01:25.2]} 17... c5 {[%clk 0:02:24.9]} 18.
Bg4 {[%clk 0:01:14.2]} 18... f5 {[%clk 0:02:20.1]} 19. Bh5 {[%clk 0:01:08.6]}
19... Re7 {[%clk 0:02:05.8]} 20. dxc5 {[%clk 0:01:03.5]} 20... Bxc5 {[%clk
0:01:45.4]} 21. Bc3 {[%clk 0:01:03.3]} 21... Qd3 {[%clk 0:01:45.9]} 22. Rfe1
{[%clk 0:00:55.5]} 22... Bc6 {[%clk 0:01:45.1]} 23. Be5 {[%clk 0:00:45.9]} 23...
Rd7 {[%clk 0:01:23.8]} 24. Rad1 {[%clk 0:00:40.3]} 24... Bxe3+ {[%clk
0:00:52.1]} 25. Rxe3 {[%clk 0:00:29.8]} 25... Qxd1+ {[%clk 0:00:48.6]} 26. Bxd1
{[%clk 0:00:28.5]} 26... Rxd1+ {[%clk 0:00:49.5]} 27. Re1 {[%clk 0:00:28.7]}
27... Rd7 {[%clk 0:00:49.8]} 28. Qb3+ {[%clk 0:00:23.8]} 28... Kh8 {[%clk
0:00:48.9]} 29. Rd1 {[%clk 0:00:22.5]} 29... Rad8 {[%clk 0:00:48.7]} 30. Rxd7
{[%clk 0:00:21.9]} 30... Rxd7 {[%clk 0:00:49.6]} 31. Qe6 {[%clk 0:00:21.2]}
31... Rd8 {[%clk 0:00:35.6]} 32. Qe7 {[%clk 0:00:19.8]} 32... Rg8 {[%clk
0:00:35.5]} 33. h4 {[%clk 0:00:17.8]} 33... h6 {[%clk 0:00:36]} 34. h5 {[%clk
0:00:18]} 34... Kh7 {[%clk 0:00:36.2]} 35. Qf7 {[%clk 0:00:18]} 35... Be8 {[%clk
0:00:36.2]} 36. Qxb7 {[%clk 0:00:17.5]} 36... Kh8 {[%clk 0:00:36.9]} 37. Qxa7
{[%clk 0:00:17.1]} 37... Bxh5 {[%clk 0:00:37.1]} 38. Qd4 {[%clk 0:00:16.7]}
38... Kh7 {[%clk 0:00:37.2]} 39. a4 {[%clk 0:00:16.9]} 39... Be2 {[%clk
0:00:32.1]} 40. Qd7 {[%clk 0:00:16.5]} 40... Bg4 {[%clk 0:00:30.9]} 41. a5
{[%clk 0:00:15.9]} 41... Kg6 {[%clk 0:00:27.6]} 42. a6 {[%clk 0:00:16.3]} 42...
Kh5 {[%clk 0:00:28]} 43. a7 {[%clk 0:00:16.7]} 43... Be2 {[%clk 0:00:27.6]} 44.
Bxg7 {[%clk 0:00:16.1]} 44... Ra8 {[%clk 0:00:21.7]} 45. Qe6 {[%clk 0:00:16.1]}
45... Bd3 {[%clk 0:00:18.2]} 46. Qxh6+ {[%clk 0:00:14.9]} 46... Kg4 {[%clk
0:00:18.6]} 47. Qg5# {[%clk 0:00:15.4]} 1-0

[Event "Early-Titled-Tuesday-Blitz-April-16-2024"]
[Site "Chess.com"]
[Date "2024.04.16"]
[Round "9"]
[White "ljuks68"]
[Black "PawnEatingZombie"]
[Result "1-0"]
[WhiteElo "2395"]
[BlackElo "2252"]
[TimeControl "180+1"]
[EndTime "9:49:04 PDT"]
[Termination "ljuks68 won on time"]

1. e4 {[%clk 0:03:00.9]} 1... c5 {[%clk 0:02:55.8]} 2. Nf3 {[%clk 0:03:01.1]}
2... Nc6 {[%clk 0:02:55.3]} 3. d4 {[%clk 0:03:01.7]} 3... cxd4 {[%clk
0:02:55.2]} 4. Nxd4 {[%clk 0:03:02.3]} 4... e5 {[%clk 0:02:55.8]} 5. Nb5 {[%clk
0:03:02.2]} 5... d6 {[%clk 0:02:55.3]} 6. c4 {[%clk 0:03:01]} 6... Be6 {[%clk
0:02:50.1]} 7. N1c3 {[%clk 0:02:59.4]} 7... a6 {[%clk 0:02:50.2]} 8. Na3 {[%clk
0:02:59.1]} 8... g6 {[%clk 0:02:50.3]} 9. Bd3 {[%clk 0:02:54.8]} 9... Bg7 {[%clk
0:02:50.6]} 10. O-O {[%clk 0:02:54.4]} 10... Nf6 {[%clk 0:02:47.9]} 11. Nd5
{[%clk 0:02:54.5]} 11... Nd7 {[%clk 0:02:46.2]} 12. Be3 {[%clk 0:02:47.4]} 12...
O-O {[%clk 0:02:44.3]} 13. Nc2 {[%clk 0:02:35.7]} 13... f5 {[%clk 0:02:43.8]}
14. f3 {[%clk 0:02:35]} 14... f4 {[%clk 0:02:21.4]} 15. Bf2 {[%clk 0:02:34.9]}
15... g5 {[%clk 0:02:21.9]} 16. b4 {[%clk 0:02:28.4]} 16... h5 {[%clk
0:02:18.3]} 17. Be2 {[%clk 0:02:27.7]} 17... Rc8 {[%clk 0:01:57]} 18. Rc1 {[%clk
0:02:24.6]} 18... Qe8 {[%clk 0:01:54]} 19. h3 {[%clk 0:02:00.4]} 19... Rf7
{[%clk 0:01:51.8]} 20. Qd2 {[%clk 0:01:37.8]} 20... Bh6 {[%clk 0:01:48.4]} 21.
b5 {[%clk 0:01:33.3]} 21... Nd8 {[%clk 0:01:39.3]} 22. bxa6 {[%clk 0:01:07.6]}
22... bxa6 {[%clk 0:01:38.3]} 23. Ncb4 {[%clk 0:01:02.3]} 23... Nc5 {[%clk
0:01:32]} 24. Bxc5 {[%clk 0:00:56]} 24... dxc5 {[%clk 0:01:24.1]} 25. Nd3 {[%clk
0:00:50.6]} 25... Bg7 {[%clk 0:01:07.6]} 26. Qa5 {[%clk 0:00:47.3]} 26... Nc6
{[%clk 0:01:01.3]} 27. Qxa6 {[%clk 0:00:33.3]} 27... Nd4 {[%clk 0:01:01.4]} 28.
Bd1 {[%clk 0:00:31.7]} 28... Bxd5 {[%clk 0:01:00.4]} 29. cxd5 {[%clk 0:00:28.4]}
29... g4 {[%clk 0:00:52.5]} 30. fxg4 {[%clk 0:00:26.7]} 30... hxg4 {[%clk
0:00:52.4]} 31. Bxg4 {[%clk 0:00:26.5]} 31... Ra8 {[%clk 0:00:45.2]} 32. Qg6
{[%clk 0:00:20.5]} 32... Rxa2 {[%clk 0:00:36.8]} 33. Rxc5 {[%clk 0:00:19.9]}
33... f3 {[%clk 0:00:11.3]} 34. Rc8 {[%clk 0:00:16.6]} 34... Rxg2+ {[%clk
0:00:07.8]} 35. Kh1 {[%clk 0:00:13.8]} 35... Qxc8 {[%clk 0:00:06.1]} 36. Qxf7+
{[%clk 0:00:14]} 36... Kxf7 {[%clk 0:00:04.9]} 37. Bxc8 {[%clk 0:00:14.4]} 37...
Rd2 {[%clk 0:00:02.4]} 38. Ba6 {[%clk 0:00:11.1]} 38... Kg6 {[%clk 0:00:01.7]}
39. d6 {[%clk 0:00:09.8]} 39... Bf6 {[%clk 0:00:01.2]} 40. d7 {[%clk 0:00:10.1]}
1-0